Workbook

Sheet HEJ
A1: Relatório Resumido da Execução Orçamentária e Financeira por Contrato de Gestão
A3: Mês/Ano: JANEIRO a ABRIL/2025
A5: Órgão Contratante: SECRETARIA DE ESTADO DA SAÚDE – SES/GO.
A6: CNPJ: 02.529.964/0001-57
A8: Organização Social Contratada : FUNDAÇÃO DE APOIO AO HOSPITAL DAS CLÍNICAS DA UNIVERSIDADE FEDERAL DE GOIÁS – FUNDAHC
A9: CNPJ: 02.918.347/0001-43
A11: Unidade Gerida: HOSPITAL ESTADUAL DE JATAÍ Dr. SERAFIM DE CARVALHO – HEJ
A13: Termo de Colaboração nº: 001/2020 - SES 8º Termo Aditivo; 17º Apostilamento (Jan25) / 18º Apostilamento (Fev25) / 19º Apostilamento (Mar25) / 20º Apostilamento (Abr25)
A14: Vigência do Contrato de Gestão: 8º Termo Aditivo: Início 30/11/2024 Término 30/10/2025
A16: Previsão de Repasse Mensal do Termo de Colaboração /ADITIVO - Custeio : R$ 10.721.616,10 Processo nº: 202000010023569
A17: Previsão de Repasse Mensal do Termo de Colaboração /ADITIVO - Investimentos : R$ Processo nº: 202500010004909
A18: Em reais
A19: Mês | C19: Comparativo do Estimado com a Execução Orçamentária e Financeira
B20: Valor Mensal Estimado no Contrato de Gestão | C20: 1. Valor Mensal Estimado no Contrato de Gestão - Custeio | D20: 2. Empenhado no mês | G20: 3. Liquidado no mês | J20: 4. Glosas Aplicadas | K20: 5. Montante pago no mês (informar o mês a que se refere, quando ocorrer repasses para mais de uma competência, inserir linha para cada mês) | O20: 6. Guia de Recolhimento (Devolução - informar na Nota Explicativa - Ex.: processo e mês a que se refere) | Q20: 7. Guias de Receita (Devolução de Recursos de Exercícios Anteriores) | R20: 8. Pagamentos (repasses – Restos a Pagar) (Informar na Nota Explicativa) | T20: 9. Pagamentos de Despesas de Exercícios Anteriores - DEA (informar a natureza, processo e outros esclarecimentos sobre o repasse efetuado para a contratada, objetivamente, na Nota Explicativa) | V20: 10. Total de Pagamentos no mês 10=5-(6+7) + 8 + 9
D21: Custeio | E21: Investimentos | F21: Repasses Adicionais (Ver Legenda) | G21: Custeio | H21: Investimentos | I21: Repasses Adicionais (Ver Legenda) | J21: Custeio | K21: Referência/Parcela | L21: Custeio | M21: Investimentos | N21: Repasses Adicionais (Ver Legenda) | O21: Custeio | P21: Investimentos | R21: Custeio | S21: Investimentos | T21: Custeio | U21: Investimento
A23: 2025-01-01 | B23: 11132548.27 | C23: 11132548.27 | D23: 68982198.11 | G23: 20743282.2 | K23: jan25 | L23: 10371616.1 | N23: 0 | R23: 272266.09 | T23: 435703.17 | V23: =L23+R23+T23 -> 11079585.36 | W23: =SUM(D23:F23) -> 68982198.11 | X23: =SUM(G23:I23) -> 20743282.2
A24: 2025-02-01 | B24: 11135284.45 | C24: 11135284.45 | D24: 410932.17 | G24: 10782548.27 | K24: fev25 | L24: 10371616.1 | V24: =L24+L25+L26 -> 11955447.8
A25: 2025-02-01 | K25: jan25 | L25: 410932.17
A26: 2025-02-01 | K26: mar25 | L26: 1172899.53
A27: 2025-03-01 | B27: 11112307.36 | C27: 11112307.36 | D27: 413668.35 | E27: 318600 | G27: 11058442.74 | H27: 318600 | J27: 350000 | K27: jan25 | L27: 273158.29 | M27: 318600 | V27: =L27+L28+L29+L30+M27 -> 11377042.74
A28: 2025-03-01 | K28: fev25 | L28: 413668.35
A29: 2025-03-01 | K29: mar25 | L29: 9198716.57
A30: 2025-03-01 | K30: abr25 | L30: 1172899.53
A31: 2025-04-01 | B31: 11154260.82 | C31: 11154260.82 | D31: 38267266.95 | E31: 512082 | G31: 10600109.85 | J31: 350000 | K31: jan25 | L31: 76841.71 | V31: =L31+L32+L33+L34+L35 -> 19798826.42
A32: 2025-04-01 | K32: fev25 | L32: 350000
A33: 2025-04-01 | K33: mar25 | L33: 390691.26
A34: 2025-04-01 | K34: abr25 | L34: 10371616.1
A35: 2025-04-01 | K35: mai25 | L35: 8609677.35
B36: =SUM(B23:B35) -> 44534400.9 | C36: =SUM(C23:C35) -> 44534400.9 | D36: =SUM(D23:D35) -> 108074065.6 | E36: 830682 | F36: =SUM(F23:F23) -> 0 | G36: =SUM(G23:G35) -> 53184383.06 | H36: 318600 | I36: =SUM(I23:I23) -> 0 | J36: =SUM(J23:J30) -> 350000 | K36: =SUM(K23:K23) -> 0 | L36: =SUM(L23:L35) -> 53184333.06 | M36: 318600 | N36: =SUM(N23:N23) -> 0 | O36: =SUM(O23:O23) -> 0 | P36: =SUM(P23:P23) -> 0 | Q36: =SUM(Q23:Q23) -> 0 | R36: =SUM(R23:R23) -> 272266.09 | S36: =SUM(S23:S23) -> 0 | T36: =SUM(T23:T23) -> 435703.17 | U36: =SUM(U23:U23) -> 0 | V36: =V23+V24+V27+V31 -> 54210902.32 | W36: =SUM(#REF!) ->  | X36: =SUM(#REF!) -> 
A38: Legenda: Repasses Adicionais - Valores adicionais ao pactuado no Contrato de Gestão - Despesas prevista Contratualmente - Executadas conforme solicitadas pela Organização Social no decorrer da vigência :
A39: Descrição
A41: Ressarcimentos (Rescisões Trabalhista, Serviço Hospitalar e Ambulatorial, Leitos Extras, Material Órtese e Prótese ( OPME e Outros ).
A42: Mandados Judiciais .
A43: Repasse Via Regularização de Despesas.
A44: Encontro de Contas Final do Contrato.
A45: Outros.
A47: Detalhamento - Glosas
A48: Descrição | F48: Valor R$ | G48: Natureza da Despesa | H48: Processo | I48: Competência do DESPESA (mês/ano) | J48: Período da APLICAÇÃO da Glosa (mês/ano)- | K48: Área Responsável
A49: Valor provisionado para ajuste posterior | F49: 350000 | G49: 3.3.50.85.02 | H49: 202000010023569 | I49: 2025-03-01 | J49: 2025-03-01 | K49: SES/CGC/SUPECC-19837
A50: Valor provisionado para ajuste posterior | F50: 350000 | G50: 3.3.50.85.02 | H50: 202000010023569 | I50: 2025-04-01 | J50: 2025-04-01 | K50: SES/CGC/SUPECC-19837
A51: Total Geral | F51: =SUM(F49:F50) -> 700000
A54: Nota Explicativa:
A55: Valor Estimado no Contrato de Gestão = Custeio R$ 10.721.616,10 + R$ 410.932,17 17º Apostilamento JAN25 / R$ 413.668,35 18º Apostilamento FEV25 / R$ 390.691,26 19º Apostilamento MAR25 / R$ 432.644,72 20º Apostilamento ABR25. 1. Valor Mensal Estimado no Contrato de Gestão - Custeio = Custeio R$ 10.721.616,10 + R$ 410.932,17 17º Apostilamento JAN25 / R$ 413.668,35 18º Apostilamento FEV25 / R$ 390.691,26 19º Apostilamento MAR25 / R$ 432.644,72 20º Apostilamento ABR25. 3. Valor informado pela área técnica – GEFIN SEI Nº 202500010016855. 4. Valor provisionado conforme Solicitação de Pagamento : JAN/25 parcial SEI Nº 69062290 ; JAN/25 consolidado SEI Nº 71121130 ; JAN/25 Consolidado complementar SEI Nº 73134945; FEV/25 parcial SEI Nº 69922294 ; FEV/25 consolidado SEI Nº 73122169 ; MAR/25 parcial SEI Nº 70898464; MAR/25 Consolidado SEI Nº 73721180; ABR/25 Parcial SEI Nº 72183142; ABR/25 Consolidado SEI Nº 75049093
A56: Conforme diretrizes descritas no Despacho 2688 (SEI Nº 65101374), Processo SEI Nº 202400010067105, o valor dos Servidores cedidos, Auxílio Moradia, Bolsa de Residência médica e Gratificação de Servidores Estatutários serão apenas de caráter informativo. Informamos que o Termo de Colaboração nº: 001/2020 - SES 8º Termo Aditivo não possui servidores cedidos e nem programa de residência.
A57: 8. Pagamentos (repasses – Restos a Pagar) - PAGO em JAN/25 - Repasse referente ao Custeio valor total R$ 272.266,09, sendo: Referência: dezembro/2024 Ordem de Pagamento 2024.2850.061.00128.003...........R$ 217.453,22 Custeio consolidado Quitado em 10/01/25 SEI Nº 71294751 Referência: dezembro/2024 Ordem de Pagamento 2024.2850.061.00128.004...........R$ 54.812,87 Fundo Rescisório Quitado em 10/01/25 SEI Nº 71294751
A58: 9. Pagamentos de Despesas de Exercícios Anteriores - DEA - PAGO em JAN/25 - 16º Apostilamento: Piso Nacional de Enfermagem - Referência dezembro/24 Ordem de Pagamento 2025.2850.070.0020.001 ........R$ 435.703,17 Quitada em 31/01/25 Siofinet
A62: Demonstrativo de investimento repassados no período de janeiro e fevereiro/2025
A63: Processo | C63: Data de Pagto | D63: Dot.Emp.Op | F63: Grupo | G63: Fonte | H63: Natureza | I63: Observação | K63: Valor Pago
A64: 202500010004909 | C64: 18/03/25 SEI 72028325 | D64: 2025.2850.161.00082.001 | F64: 4 | G64: 15000100 | H64: 4.4.50.42.05 | I64: Aquisição de 02(dois) Aparelhos de Ultrassom Portátil | K64: 318600
A67: Total Geral HEJ | K67: =SUM(K64:K66) -> 318600
A69: Fonte: Contratos de Gestão e Aditivos contidos no processo e Portal Transparência: saude.go.gov.br e Sistema SIOFINET - Portal.go.gov.br.
